[Event "Early-Titled-Tuesday-Blitz-February-20-2024"]
[Site "Chess.com"]
[Date "2024.02.20"]
[Round "5"]
[White "ViratKohl_i"]
[Black "Kirill_Klukin"]
[Result "0-1"]
[WhiteElo "2525"]
[BlackElo "2842"]
[TimeControl "180+1"]
[EndTime "8:56:11 PST"]
[Termination "Kirill_Klukin won by resignation"]

1. c4 {[%clk 0:02:59]} 1... c5 {[%clk 0:02:59.6]} 2. Nc3 {[%clk 0:02:57.6]} 2...
Nc6 {[%clk 0:03:00.2]} 3. g3 {[%clk 0:02:56.3]} 3... g6 {[%clk 0:03:00.8]} 4.
Bg2 {[%clk 0:02:57]} 4... Bg7 {[%clk 0:03:01.5]} 5. h4 {[%clk 0:02:57]} 5... Nf6
{[%clk 0:02:57.3]} 6. Nf3 {[%clk 0:02:56.2]} 6... a6 {[%clk 0:02:57.4]} 7. d3
{[%clk 0:02:55.9]} 7... Rb8 {[%clk 0:02:57.5]} 8. Qd2 {[%clk 0:02:51.6]} 8... b5
{[%clk 0:02:53.9]} 9. b3 {[%clk 0:02:51]} 9... d6 {[%clk 0:02:52.3]} 10. Bb2
{[%clk 0:02:50]} 10... O-O {[%clk 0:02:49.2]} 11. O-O {[%clk 0:02:48.8]} 11...
Bd7 {[%clk 0:02:38.6]} 12. Rac1 {[%clk 0:02:46.5]} 12... Qa5 {[%clk 0:02:35.5]}
13. Rfd1 {[%clk 0:02:37.1]} 13... Rfc8 {[%clk 0:02:34.6]} 14. Ng5 {[%clk
0:02:27.7]} 14... Ne5 {[%clk 0:02:21.2]} 15. Nge4 {[%clk 0:02:15]} 15... Nxe4
{[%clk 0:02:20.7]} 16. Nxe4 {[%clk 0:02:11.1]} 16... Qxa2 {[%clk 0:02:07.5]} 17.
cxb5 {[%clk 0:01:48.2]} 17... axb5 {[%clk 0:01:38.1]} 18. Nc3 {[%clk 0:01:26.5]}
18... Qxb3 {[%clk 0:01:33.7]} 19. Bd5 {[%clk 0:01:24.6]} 19... Qb4 {[%clk
0:01:33.9]} 20. Rb1 {[%clk 0:01:22.9]} 20... Qg4 {[%clk 0:01:18.6]} 21. Ne4
{[%clk 0:01:17.4]} 21... Bc6 {[%clk 0:00:58.4]} 22. Bxc6 {[%clk 0:01:14]} 22...
Nxc6 {[%clk 0:00:58.9]} 23. Bxg7 {[%clk 0:01:10.3]} 23... Kxg7 {[%clk
0:00:59.8]} 24. f3 {[%clk 0:01:06.1]} 24... Qh3 {[%clk 0:00:52.1]} 25. Qg5
{[%clk 0:00:56]} 25... f6 {[%clk 0:00:49.9]} 26. Qf4 {[%clk 0:00:55.6]} 26...
Nd4 {[%clk 0:00:47.3]} 27. Rd2 {[%clk 0:00:46.8]} 27... Ne6 {[%clk 0:00:45.6]}
28. Qe3 {[%clk 0:00:45.9]} 28... d5 {[%clk 0:00:43.3]} 29. Nf2 {[%clk
0:00:45.2]} 29... Qxg3+ {[%clk 0:00:43.4]} 30. Kf1 {[%clk 0:00:45.1]} 30... Qd6
{[%clk 0:00:38.1]} 31. Ng4 {[%clk 0:00:42.6]} 31... Nf4 {[%clk 0:00:37]} 32. Ra2
{[%clk 0:00:37.9]} 32... d4 {[%clk 0:00:33.2]} 33. Qe4 {[%clk 0:00:36.1]} 33...
f5 {[%clk 0:00:30.9]} 34. Qe5+ {[%clk 0:00:35.9]} 34... Qxe5 {[%clk 0:00:31.3]}
35. Nxe5 {[%clk 0:00:36.8]} 35... Rb7 {[%clk 0:00:30.1]} 36. Ra6 {[%clk
0:00:33.3]} 36... Nd5 {[%clk 0:00:28.8]} 37. Rba1 {[%clk 0:00:26.4]} 37... c4
{[%clk 0:00:25.4]} 38. dxc4 {[%clk 0:00:24.8]} 38... bxc4 {[%clk 0:00:26.3]} 39.
Kf2 {[%clk 0:00:24]} 39... c3 {[%clk 0:00:25.7]} 40. Nc6 {[%clk 0:00:22.5]}
40... Nb4 {[%clk 0:00:18]} 41. Nxb4 {[%clk 0:00:22.3]} 41... Rxb4 {[%clk
0:00:18.9]} 42. Ra7 {[%clk 0:00:19]} 42... Kf7 {[%clk 0:00:18.9]} 0-1

[Event "Early-Titled-Tuesday-Blitz-February-20-2024"]
[Site "Chess.com"]
[Date "2024.02.20"]
[Round "5"]
[White "kleopl"]
[Black "ragnaroek66"]
[Result "0-1"]
[WhiteElo "2531"]
[BlackElo "2419"]
[TimeControl "180+1"]
[EndTime "8:56:11 PST"]
[Termination "ragnaroek66 won by resignation"]

1. e4 {[%clk 0:03:00.9]} 1... c5 {[%clk 0:02:59.3]} 2. Nc3 {[%clk 0:02:59]} 2...
Nc6 {[%clk 0:02:59.1]} 3. Bb5 {[%clk 0:02:58.5]} 3... Nd4 {[%clk 0:02:59.5]} 4.
Bc4 {[%clk 0:02:58.8]} 4... e6 {[%clk 0:02:59.2]} 5. Nge2 {[%clk 0:02:59.1]}
5... Nf6 {[%clk 0:02:59.8]} 6. O-O {[%clk 0:02:58.7]} 6... a6 {[%clk 0:03:00.3]}
7. a4 {[%clk 0:02:56.9]} 7... d5 {[%clk 0:03:00.6]} 8. exd5 {[%clk 0:02:57]}
8... exd5 {[%clk 0:03:01.5]} 9. Ba2 {[%clk 0:02:56.6]} 9... Nc6 {[%clk 0:03:02]}
10. d4 {[%clk 0:02:55.8]} 10... c4 {[%clk 0:03:02.3]} 11. b3 {[%clk 0:02:54.5]}
11... b5 {[%clk 0:02:56.9]} 12. axb5 {[%clk 0:02:43.5]} 12... axb5 {[%clk
0:02:57.8]} 13. Nxb5 {[%clk 0:02:43.5]} 13... cxb3 {[%clk 0:02:53.1]} 14. cxb3
{[%clk 0:02:29.3]} 14... Be7 {[%clk 0:02:52.2]} 15. Bf4 {[%clk 0:02:28.1]} 15...
O-O {[%clk 0:02:50.6]} 16. Re1 {[%clk 0:01:50.7]} 16... Nb4 {[%clk 0:02:42.2]}
17. Qd2 {[%clk 0:01:43.1]} 17... Ne4 {[%clk 0:02:37.1]} 18. Qb2 {[%clk
0:01:36.8]} 18... Nd3 {[%clk 0:02:36]} 19. Qc2 {[%clk 0:01:36.8]} 19... Nxe1
{[%clk 0:02:29.2]} 20. Rxe1 {[%clk 0:01:37.7]} 20... Qa5 {[%clk 0:02:13.5]} 21.
Nbc3 {[%clk 0:01:34.6]} 21... Bb4 {[%clk 0:01:49.6]} 22. Bd2 {[%clk 0:01:33.8]}
22... Bf5 {[%clk 0:01:39.2]} 23. Nxe4 {[%clk 0:00:51.6]} 23... Bxe4 {[%clk
0:01:02.3]} 24. Bxb4 {[%clk 0:00:51.4]} 24... Qxb4 {[%clk 0:01:01.8]} 25. Qc3
{[%clk 0:00:51.8]} 25... Rfb8 {[%clk 0:00:48.1]} 26. Bb1 {[%clk 0:00:43.8]}
26... Ra1 {[%clk 0:00:38.2]} 27. f3 {[%clk 0:00:21.3]} 27... Rxb1 {[%clk
0:00:29]} 28. Rxb1 {[%clk 0:00:10]} 28... Bxb1 {[%clk 0:00:27.9]} 29. Qc1 {[%clk
0:00:10.7]} 29... Qxb3 {[%clk 0:00:27.5]} 30. Kf2 {[%clk 0:00:11]} 30... Bg6
{[%clk 0:00:26.4]} 31. Qc7 {[%clk 0:00:10.6]} 31... Qb7 {[%clk 0:00:24.8]} 32.
Qe5 {[%clk 0:00:10.3]} 32... f6 {[%clk 0:00:22.7]} 33. Qe6+ {[%clk 0:00:10.2]}
33... Bf7 {[%clk 0:00:22.9]} 34. Qd6 {[%clk 0:00:10.2]} 34... Qb6 {[%clk
0:00:21.8]} 35. Qd7 {[%clk 0:00:09.9]} 35... Rd8 {[%clk 0:00:21.2]} 36. Qf5
{[%clk 0:00:09.6]} 36... Bg6 {[%clk 0:00:19.6]} 37. Qf4 {[%clk 0:00:09.9]} 37...
Qd6 {[%clk 0:00:19.3]} 38. Qh4 {[%clk 0:00:09.3]} 38... Re8 {[%clk 0:00:18.3]}
39. Nf4 {[%clk 0:00:08.9]} 39... Qe7 {[%clk 0:00:18.1]} 40. g4 {[%clk
0:00:07.7]} 40... Qe1+ {[%clk 0:00:17.9]} 41. Kg2 {[%clk 0:00:07.4]} 41... Qxh4
{[%clk 0:00:18.8]} 0-1

[Event "Early-Titled-Tuesday-Blitz-February-20-2024"]
[Site "Chess.com"]
[Date "2024.02.20"]
[Round "5"]
[White "GelmanAlexander"]
[Black "TimAina"]
[Result "0-1"]
[WhiteElo "2754"]
[BlackElo "2797"]
[TimeControl "180+1"]
[EndTime "8:56:14 PST"]
[Termination "TimAina won by resignation"]

1. d4 {[%clk 0:02:59.9]} 1... Nf6 {[%clk 0:03:00.1]} 2. Nc3 {[%clk 0:02:59.7]}
2... d5 {[%clk 0:02:59.7]} 3. Bf4 {[%clk 0:02:59.5]} 3... g6 {[%clk 0:03:00.3]}
4. e3 {[%clk 0:02:59.5]} 4... Bg7 {[%clk 0:03:00.9]} 5. h4 {[%clk 0:02:59.9]}
5... O-O {[%clk 0:03:01.4]} 6. h5 {[%clk 0:02:59.9]} 6... c5 {[%clk 0:03:02.2]}
7. hxg6 {[%clk 0:02:57.2]} 7... hxg6 {[%clk 0:03:02.2]} 8. Qd2 {[%clk
0:02:52.2]} 8... Nc6 {[%clk 0:03:02.3]} 9. O-O-O {[%clk 0:02:51.3]} 9... Qa5
{[%clk 0:03:02.4]} 10. Nf3 {[%clk 0:02:47.5]} 10... Ne4 {[%clk 0:03:01.7]} 11.
Nxe4 {[%clk 0:02:44.8]} 11... dxe4 {[%clk 0:02:51.7]} 12. Qxa5 {[%clk 0:02:44]}
12... Nxa5 {[%clk 0:02:52.6]} 13. Ng5 {[%clk 0:02:20.8]} 13... cxd4 {[%clk
0:02:23]} 14. exd4 {[%clk 0:02:17.8]} 14... Bf5 {[%clk 0:02:23.5]} 15. Be2
{[%clk 0:02:16.6]} 15... f6 {[%clk 0:02:20.2]} 16. Nh3 {[%clk 0:02:02.7]} 16...
Rfc8 {[%clk 0:02:20]} 17. g4 {[%clk 0:02:01.4]} 17... Be6 {[%clk 0:02:20.2]} 18.
d5 {[%clk 0:01:50]} 18... Bf7 {[%clk 0:02:16.3]} 19. Be3 {[%clk 0:01:42]} 19...
Nc4 {[%clk 0:02:11.1]} 20. Bxc4 {[%clk 0:01:41.7]} 20... Rxc4 {[%clk 0:02:12]}
21. Nf4 {[%clk 0:01:32.7]} 21... g5 {[%clk 0:02:06.7]} 22. Ne6 {[%clk 0:01:29]}
22... Bxe6 {[%clk 0:02:06.7]} 23. dxe6 {[%clk 0:01:29.9]} 23... Rc6 {[%clk
0:02:07.3]} 24. Rd7 {[%clk 0:01:26.9]} 24... Rxe6 {[%clk 0:02:07.6]} 25. Rxb7
{[%clk 0:01:27.5]} 25... a6 {[%clk 0:02:07.5]} 26. Rd1 {[%clk 0:01:24.1]} 26...
Rc8 {[%clk 0:02:02.4]} 27. Rdd7 {[%clk 0:01:21.6]} 27... Kf7 {[%clk 0:02:01.1]}
28. c4 {[%clk 0:01:19.4]} 28... Rxc4+ {[%clk 0:02:00.2]} 29. Kb1 {[%clk
0:01:18.3]} 29... Rc8 {[%clk 0:01:58.1]} 30. b4 {[%clk 0:01:14.9]} 30... Rh8
{[%clk 0:01:07]} 31. a4 {[%clk 0:01:12.3]} 31... Rh4 {[%clk 0:01:07.2]} 32. b5
{[%clk 0:00:55.5]} 32... axb5 {[%clk 0:01:08.1]} 33. a5 {[%clk 0:00:53.3]} 33...
Rxg4 {[%clk 0:01:03.1]} 34. a6 {[%clk 0:00:48.1]} 34... Rg1+ {[%clk 0:01:01.5]}
35. Kc2 {[%clk 0:00:44.8]} 35... f5 {[%clk 0:00:49.6]} 36. Rdc7 {[%clk
0:00:29.2]} 36... Be5 {[%clk 0:00:24]} 37. a7 {[%clk 0:00:27.4]} 37... Ra1
{[%clk 0:00:24.1]} 38. Rc5 {[%clk 0:00:21]} 38... f4 {[%clk 0:00:24.3]} 39. Bc1
{[%clk 0:00:18.1]} 39... Bd4 {[%clk 0:00:22.4]} 40. Rcc7 {[%clk 0:00:14.8]}
40... e3 {[%clk 0:00:20.8]} 41. fxe3 {[%clk 0:00:14.7]} 41... fxe3 {[%clk
0:00:21.7]} 42. Bb2 {[%clk 0:00:10]} 42... Ra2 {[%clk 0:00:20.8]} 43. Kd3 {[%clk
0:00:07.2]} 43... e2 {[%clk 0:00:20.1]} 44. Bxd4 {[%clk 0:00:04.5]} 44... e1=Q
{[%clk 0:00:20]} 0-1

[Event "Early-Titled-Tuesday-Blitz-February-20-2024"]
[Site "Chess.com"]
[Date "2024.02.20"]
[Round "5"]
[White "kpio91"]
[Black "Kildepiotr"]
[Result "1-0"]
[WhiteElo "2882"]
[BlackElo "2669"]
[TimeControl "180+1"]
[EndTime "8:56:14 PST"]
[Termination "kpio91 won by resignation"]

1. d4 {[%clk 0:03:00.9]} 1... Nf6 {[%clk 0:02:58.8]} 2. Nf3 {[%clk 0:02:56.8]}
2... e6 {[%clk 0:02:59.1]} 3. e3 {[%clk 0:02:57.1]} 3... b6 {[%clk 0:02:58.5]}
4. Bd3 {[%clk 0:02:56.5]} 4... Bb7 {[%clk 0:02:58.7]} 5. O-O {[%clk 0:02:56.3]}
5... c5 {[%clk 0:02:57.4]} 6. c4 {[%clk 0:02:56.2]} 6... Be7 {[%clk 0:02:56.2]}
7. Nc3 {[%clk 0:02:55.9]} 7... cxd4 {[%clk 0:02:53.5]} 8. exd4 {[%clk
0:02:55.6]} 8... d5 {[%clk 0:02:53.9]} 9. cxd5 {[%clk 0:02:55.5]} 9... Nxd5
{[%clk 0:02:53.9]} 10. Ne5 {[%clk 0:02:55.6]} 10... Nd7 {[%clk 0:02:49.6]} 11.
Bb5 {[%clk 0:02:44.9]} 11... Nf6 {[%clk 0:02:49.7]} 12. Bc6 {[%clk 0:02:04.8]}
12... Qc8 {[%clk 0:02:39.8]} 13. Qf3 {[%clk 0:02:03.7]} 13... Bxc6 {[%clk
0:02:36.4]} 14. Nxc6 {[%clk 0:02:03.6]} 14... Qb7 {[%clk 0:02:25.5]} 15. d5
{[%clk 0:01:59.6]} 15... Nc5 {[%clk 0:02:08.1]} 16. Nxe7 {[%clk 0:01:54.6]}
16... Qxe7 {[%clk 0:02:02.1]} 17. dxe6 {[%clk 0:01:51]} 17... O-O {[%clk
0:02:01.2]} 18. exf7+ {[%clk 0:01:50.4]} 18... Qxf7 {[%clk 0:02:02]} 19. Bg5
{[%clk 0:01:44.7]} 19... Rad8 {[%clk 0:01:56.9]} 20. Rad1 {[%clk 0:01:43.5]}
20... Qg6 {[%clk 0:01:46.1]} 21. Bxf6 {[%clk 0:01:42.3]} 21... Qxf6 {[%clk
0:01:41.5]} 22. Qxf6 {[%clk 0:01:39.1]} 22... gxf6 {[%clk 0:01:41.6]} 23. Nd5
{[%clk 0:01:26]} 23... Kf7 {[%clk 0:01:39.2]} 24. b4 {[%clk 0:01:22.8]} 24...
Ne6 {[%clk 0:01:32.7]} 25. Nc3 {[%clk 0:01:14.5]} 25... Nd4 {[%clk 0:01:27]} 26.
f3 {[%clk 0:01:05.7]} 26... Nc2 {[%clk 0:01:25.6]} 27. b5 {[%clk 0:00:49.4]}
27... Ne3 {[%clk 0:01:24]} 28. Rxd8 {[%clk 0:00:48.6]} 28... Rxd8 {[%clk
0:01:24.9]} 29. Re1 {[%clk 0:00:48.8]} 29... Rd3 {[%clk 0:01:11.3]} 30. Ne4
{[%clk 0:00:45.9]} 30... Nc4 {[%clk 0:01:02.8]} 31. Rc1 {[%clk 0:00:44.7]} 31...
Na3 {[%clk 0:00:58.1]} 32. Rc7+ {[%clk 0:00:44.1]} 32... Kg6 {[%clk 0:00:58.6]}
33. Rc6 {[%clk 0:00:43.3]} 33... Nxb5 {[%clk 0:00:57]} 34. Rxf6+ {[%clk
0:00:42.7]} 34... Kg7 {[%clk 0:00:57.4]} 35. Rc6 {[%clk 0:00:42.6]} 35... Ra3
{[%clk 0:00:53.2]} 36. f4 {[%clk 0:00:41.6]} 36... Nd4 {[%clk 0:00:50.3]} 37.
Rd6 {[%clk 0:00:39.1]} 37... Ne2+ {[%clk 0:00:48.7]} 38. Kf2 {[%clk 0:00:36.3]}
38... Nxf4 {[%clk 0:00:49.3]} 39. Rd2 {[%clk 0:00:36.2]} 39... b5 {[%clk
0:00:42.8]} 40. Nd6 {[%clk 0:00:24.1]} 40... b4 {[%clk 0:00:39]} 41. Nb5 {[%clk
0:00:24]} 41... Ra5 {[%clk 0:00:35.4]} 42. Nd6 {[%clk 0:00:21.9]} 42... Re5
{[%clk 0:00:25]} 43. Kf3 {[%clk 0:00:21.2]} 43... Nd5 {[%clk 0:00:22.3]} 44. Nc4
{[%clk 0:00:21.2]} 44... Rf5+ {[%clk 0:00:14.1]} 45. Ke4 {[%clk 0:00:20.6]}
45... Kf6 {[%clk 0:00:11]} 46. Rxd5 {[%clk 0:00:19.6]} 1-0

[Event "Early-Titled-Tuesday-Blitz-February-20-2024"]
[Site "Chess.com"]
[Date "2024.02.20"]
[Round "5"]
[White "joshdaruca"]
[Black "ketster"]
[Result "1-0"]
[WhiteElo "2772"]
[BlackElo "2570"]
[TimeControl "180+1"]
[EndTime "8:56:14 PST"]
[Termination "joshdaruca won on time"]

1. b3 {[%clk 0:02:51.7]} 1... d5 {[%clk 0:02:58.5]} 2. Bb2 {[%clk 0:02:52.6]}
2... Nf6 {[%clk 0:02:59]} 3. d3 {[%clk 0:02:47.7]} 3... c5 {[%clk 0:02:57.7]} 4.
Nd2 {[%clk 0:02:46.5]} 4... Nc6 {[%clk 0:02:55.1]} 5. Ngf3 {[%clk 0:02:47]} 5...
Bf5 {[%clk 0:02:44.2]} 6. g3 {[%clk 0:02:42.7]} 6... h6 {[%clk 0:02:35.7]} 7.
Bg2 {[%clk 0:02:42.4]} 7... e6 {[%clk 0:02:35.7]} 8. O-O {[%clk 0:02:40.5]} 8...
Bd6 {[%clk 0:02:15]} 9. e4 {[%clk 0:02:31.2]} 9... dxe4 {[%clk 0:02:03.5]} 10.
dxe4 {[%clk 0:02:30.9]} 10... Nxe4 {[%clk 0:01:55.3]} 11. Nh4 {[%clk 0:02:02.6]}
11... Nxd2 {[%clk 0:01:38.3]} 12. Nxf5 {[%clk 0:01:59.6]} 12... exf5 {[%clk
0:01:08.8]} 13. Bxc6+ {[%clk 0:01:15]} 13... bxc6 {[%clk 0:01:07.7]} 14. Qxd2
{[%clk 0:01:14.6]} 14... O-O {[%clk 0:01:05.5]} 15. Rad1 {[%clk 0:01:11.2]}
15... Be7 {[%clk 0:00:17.5]} 16. Qc3 {[%clk 0:01:09.9]} 16... Bf6 {[%clk
0:00:17.7]} 17. Rxd8 {[%clk 0:01:09.8]} 17... Rfxd8 {[%clk 0:00:18]} 18. Qxc5
{[%clk 0:01:08.5]} 18... Bxb2 {[%clk 0:00:18]} 19. Re1 {[%clk 0:00:41.1]} 19...
Bd4 {[%clk 0:00:12]} 20. Qxf5 {[%clk 0:00:39.3]} 20... Bb6 {[%clk 0:00:06.8]}
21. Re7 {[%clk 0:00:39]} 21... Rf8 {[%clk 0:00:06.5]} 22. Qd7 {[%clk 0:00:34.3]}
22... Rad8 {[%clk 0:00:06.1]} 23. Qg4 {[%clk 0:00:27.2]} 23... Rd2 {[%clk
0:00:04.6]} 24. Re2 {[%clk 0:00:27.8]} 24... Rd1+ {[%clk 0:00:03.5]} 25. Kg2
{[%clk 0:00:27.8]} 25... Rfd8 {[%clk 0:00:03.7]} 26. Qc4 {[%clk 0:00:27.8]}
26... R1d6 {[%clk 0:00:03]} 27. h4 {[%clk 0:00:18.8]} 27... Rf6 {[%clk
0:00:02.5]} 28. a4 {[%clk 0:00:18.7]} 28... g6 {[%clk 0:00:02.6]} 29. Qc3 {[%clk
0:00:18.3]} 29... Bd4 {[%clk 0:00:01.6]} 30. Qe1 {[%clk 0:00:17.5]} 30... h5
{[%clk 0:00:02.2]} 31. c3 {[%clk 0:00:17.8]} 31... Bb6 {[%clk 0:00:01.9]} 32. b4
{[%clk 0:00:18.3]} 32... Rfd6 {[%clk 0:00:01.8]} 33. a5 {[%clk 0:00:17]} 33...
Bc7 {[%clk 0:00:02.2]} 34. Re8+ {[%clk 0:00:17.2]} 34... Kg7 {[%clk 0:00:02.1]}
35. Rxd8 {[%clk 0:00:15.1]} 35... Rxd8 {[%clk 0:00:03]} 36. Qe3 {[%clk
0:00:14.9]} 36... Rd5 {[%clk 0:00:01.7]} 37. Qxa7 {[%clk 0:00:14.3]} 37... Be5
{[%clk 0:00:01.8]} 38. Qb7 {[%clk 0:00:13.7]} 38... Rd2 {[%clk 0:00:01.7]} 39.
Qxc6 {[%clk 0:00:13.1]} 1-0

[Event "Early-Titled-Tuesday-Blitz-February-20-2024"]
[Site "Chess.com"]
[Date "2024.02.20"]
[Round "5"]
[White "Bauman_Guy"]
[Black "Denis_Makhnyov"]
[Result "1-0"]
[WhiteElo "2921"]
[BlackElo "3016"]
[TimeControl "180+1"]
[EndTime "8:56:15 PST"]
[Termination "Bauman_Guy won on time"]

1. e4 {[%clk 0:03:00.9]} 1... e5 {[%clk 0:02:56.7]} 2. Nf3 {[%clk 0:03:01]} 2...
Nc6 {[%clk 0:02:57.2]} 3. Bb5 {[%clk 0:03:01.1]} 3... a6 {[%clk 0:02:57.8]} 4.
Ba4 {[%clk 0:03:01]} 4... Nf6 {[%clk 0:02:58.3]} 5. O-O {[%clk 0:03:01.2]} 5...
Be7 {[%clk 0:02:58.9]} 6. d3 {[%clk 0:03:01.5]} 6... b5 {[%clk 0:02:58.9]} 7.
Bb3 {[%clk 0:03:01.7]} 7... O-O {[%clk 0:02:59.8]} 8. a4 {[%clk 0:03:01.8]} 8...
Bb7 {[%clk 0:02:59.5]} 9. h3 {[%clk 0:03:00.6]} 9... d5 {[%clk 0:02:47.1]} 10.
exd5 {[%clk 0:02:56]} 10... Nxd5 {[%clk 0:02:46.8]} 11. Re1 {[%clk 0:02:56.6]}
11... Nd4 {[%clk 0:02:41.9]} 12. Nxd4 {[%clk 0:02:51.1]} 12... exd4 {[%clk
0:02:41.5]} 13. Nd2 {[%clk 0:02:50.3]} 13... c5 {[%clk 0:02:06.2]} 14. Nf3
{[%clk 0:02:39.9]} 14... Qc7 {[%clk 0:02:02.8]} 15. axb5 {[%clk 0:01:54.8]}
15... axb5 {[%clk 0:02:01.3]} 16. Rxa8 {[%clk 0:01:54.9]} 16... Bxa8 {[%clk
0:02:02.2]} 17. Qe2 {[%clk 0:01:33.1]} 17... Bd6 {[%clk 0:01:59.1]} 18. Bd2
{[%clk 0:01:28.3]} 18... h6 {[%clk 0:01:54.5]} 19. Nh4 {[%clk 0:01:15.7]} 19...
Bh2+ {[%clk 0:01:40.2]} 20. Kh1 {[%clk 0:01:12.5]} 20... Bf4 {[%clk 0:01:41.1]}
21. Nf5 {[%clk 0:01:02.4]} 21... Bxd2 {[%clk 0:00:36.6]} 22. Qxd2 {[%clk
0:01:02.3]} 22... c4 {[%clk 0:00:37.5]} 23. Ba2 {[%clk 0:00:46.2]} 23... c3
{[%clk 0:00:30.2]} 24. bxc3 {[%clk 0:00:44.6]} 24... dxc3 {[%clk 0:00:30.6]} 25.
Qd1 {[%clk 0:00:32.6]} 25... Nf4 {[%clk 0:00:28.9]} 26. Qg4 {[%clk 0:00:20.6]}
26... Bxg2+ {[%clk 0:00:26.1]} 27. Kg1 {[%clk 0:00:20.2]} 27... g6 {[%clk
0:00:26.8]} 28. Re7 {[%clk 0:00:18.2]} 28... h5 {[%clk 0:00:06.4]} 29. Qg3
{[%clk 0:00:12]} 29... Qc8 {[%clk 0:00:03]} 30. Nh6+ {[%clk 0:00:11.1]} 30...
Kg7 {[%clk 0:00:03.4]} 31. Nxf7 {[%clk 0:00:09.6]} 31... Qxh3 {[%clk 0:00:02.3]}
32. Ng5+ {[%clk 0:00:09.8]} 32... Kf6 {[%clk 0:00:02.4]} 33. Nxh3 {[%clk
0:00:10.2]} 33... Bxh3 {[%clk 0:00:02.5]} 34. Qxf4+ {[%clk 0:00:08.6]} 1-0

[Event "Early-Titled-Tuesday-Blitz-February-20-2024"]
[Site "Chess.com"]
[Date "2024.02.20"]
[Round "5"]
[White "Manukyan_Artak"]
[Black "fabianvivasz"]
[Result "1-0"]
[WhiteElo "2554"]
[BlackElo "2389"]
[TimeControl "180+1"]
[EndTime "8:56:15 PST"]
[Termination "Manukyan_Artak won by resignation"]

1. e4 {[%clk 0:02:56.2]} 1... e5 {[%clk 0:02:54.7]} 2. Nf3 {[%clk 0:02:54.6]}
2... Nc6 {[%clk 0:02:52.3]} 3. d4 {[%clk 0:02:49.7]} 3... exd4 {[%clk
0:02:53.2]} 4. Nxd4 {[%clk 0:02:48.2]} 4... Nf6 {[%clk 0:02:53.8]} 5. Nxc6
{[%clk 0:02:47.5]} 5... bxc6 {[%clk 0:02:54.7]} 6. e5 {[%clk 0:02:47.9]} 6...
Qe7 {[%clk 0:02:54.7]} 7. Qe2 {[%clk 0:02:47.1]} 7... Nd5 {[%clk 0:02:55.3]} 8.
c4 {[%clk 0:02:43.7]} 8... Ba6 {[%clk 0:02:55.7]} 9. b3 {[%clk 0:02:40.6]} 9...
g6 {[%clk 0:02:55.2]} 10. g3 {[%clk 0:02:35.8]} 10... Bg7 {[%clk 0:02:53.9]} 11.
Bb2 {[%clk 0:02:35.6]} 11... O-O {[%clk 0:02:49.5]} 12. Bg2 {[%clk 0:02:33.6]}
12... Rae8 {[%clk 0:02:49.5]} 13. O-O {[%clk 0:02:26.9]} 13... Bxe5 {[%clk
0:02:49.5]} 14. Qxe5 {[%clk 0:02:25.3]} 14... Qxe5 {[%clk 0:02:50.4]} 15. Bxe5
{[%clk 0:02:25.6]} 15... Rxe5 {[%clk 0:02:51.3]} 16. cxd5 {[%clk 0:02:24.5]}
16... Bxf1 {[%clk 0:02:52]} 17. Kxf1 {[%clk 0:02:24.9]} 17... cxd5 {[%clk
0:02:52.4]} 18. Nc3 {[%clk 0:02:25.3]} 18... c6 {[%clk 0:02:52.3]} 19. Rc1
{[%clk 0:02:22.1]} 19... Rb8 {[%clk 0:02:25.7]} 20. Na4 {[%clk 0:02:18.6]} 20...
Kf8 {[%clk 0:02:21.6]} 21. Bf3 {[%clk 0:02:14]} 21... Ke7 {[%clk 0:02:16.3]} 22.
Nc5 {[%clk 0:02:09.8]} 22... Kd6 {[%clk 0:02:14.7]} 23. Nd3 {[%clk 0:02:10]}
23... Ree8 {[%clk 0:02:00]} 24. Be2 {[%clk 0:02:02.7]} 24... a5 {[%clk 0:01:46]}
25. Ke1 {[%clk 0:01:52.9]} 25... Re4 {[%clk 0:01:27.7]} 26. Kd2 {[%clk
0:01:49.1]} 26... a4 {[%clk 0:01:19]} 27. b4 {[%clk 0:01:44]} 27... h5 {[%clk
0:00:45.4]} 28. a3 {[%clk 0:01:40]} 28... h4 {[%clk 0:00:43]} 29. Nc5 {[%clk
0:01:35.5]} 29... Re7 {[%clk 0:00:30.8]} 30. gxh4 {[%clk 0:01:31.4]} 30... Rh8
{[%clk 0:00:27.9]} 31. h5 {[%clk 0:01:28.1]} 31... gxh5 {[%clk 0:00:22.6]} 32.
Rc3 {[%clk 0:01:26.6]} 32... Re5 {[%clk 0:00:18.9]} 33. Rh3 {[%clk 0:01:14]}
33... h4 {[%clk 0:00:18.6]} 34. f4 {[%clk 0:01:04.8]} 34... Rf5 {[%clk
0:00:16.3]} 35. Ke3 {[%clk 0:01:00.7]} 35... Re8+ {[%clk 0:00:13.8]} 36. Kf3
{[%clk 0:01:00]} 36... Rxe2 {[%clk 0:00:12.5]} 37. Kxe2 {[%clk 0:00:55.2]} 37...
Rxf4 {[%clk 0:00:13.1]} 38. Rf3 {[%clk 0:00:56]} 38... Rc4 {[%clk 0:00:09.8]}
39. Kd3 {[%clk 0:00:49.6]} 39... Ke7 {[%clk 0:00:07]} 40. Nxa4 {[%clk
0:00:45.7]} 40... Rc1 {[%clk 0:00:03.5]} 41. Nc3 {[%clk 0:00:39.1]} 41... Ra1
{[%clk 0:00:03.5]} 42. a4 {[%clk 0:00:38.7]} 42... d6 {[%clk 0:00:02.9]} 43. a5
{[%clk 0:00:34.2]} 43... c5 {[%clk 0:00:03.3]} 44. Nxd5+ {[%clk 0:00:34]} 44...
Ke6 {[%clk 0:00:02.1]} 45. Nc7+ {[%clk 0:00:31.5]} 45... Kd7 {[%clk 0:00:02.3]}
46. Rxf7+ {[%clk 0:00:31.2]} 46... Kc6 {[%clk 0:00:02.5]} 47. b5+ {[%clk
0:00:31.3]} 47... Kb7 {[%clk 0:00:01.6]} 1-0